bitfinex/quotes_SOLUSD_20241024
["timestamp","ask_amount","ask_price","bid_price","bid_amount"]
[1729755682941,46.22376782,173.85,173.8,46.37021058]
[1729755683533,46.37021058,173.83,173.78,46.37021058]
[1729755687623,46.37021058,173.84,173.78,46.37021058]
[1729755688122,46.37021058,173.85,173.78,46.37021058]
[1729755689439,46.37021058,173.85,173.79,46.37021058]
[1729755689619,0.6071155,173.86,173.82,46.37021058]
[1729755690026,46.97732608,173.86,173.81,46.37021058]
[1729755690228,0.6071155,173.86,173.81,14.45328824]
[1729755690432,29.51369198,173.86,173.81,28.90657648]
[1729755691335,28.90657648,173.85,173.8,28.90657648]
[1729755691525,28.90657648,173.84,173.8,28.90657648]
[1729755691856,28.90657648,173.85,173.8,28.90657648]
[1729755692649,28.90657648,173.85,173.81,28.90657648]
[1729755692945,28.90657648,173.85,173.8,28.90657648]
[1729755693643,28.90657648,173.85,173.81,1.46413869]
[1729755693854,28.90657648,173.85,173.8,28.90657648]
[1729755695140,28.90657648,173.85,173.81,1.46413869]
[1729755695320,28.90657648,173.85,173.8,28.90657648]
[1729755695723,28.90657648,173.85,173.81,1.46413869]
[1729755696142,28.90657648,173.85,173.8,28.90657648]
[1729755696535,29.51369198,173.86,173.81,1.46413869]
[1729755697049,29.51369198,173.86,173.8,28.90657648]
[1729755697420,0.6071155,173.86,173.83,28.90657648]
[1729755697626,0.6071155,173.86,173.85,28.90657648]
[1729755698427,0.6071155,173.86,173.84,28.90657648]
[1729755699742,0.6071155,173.86,173.85,28.90657648]
[1729755701123,28.90657648,173.91,173.85,28.90657648]
[1729755701325,28.90657648,173.91,173.86,28.90657648]
[1729755702346,28.90657648,173.9,173.85,28.90657648]
[1729755702642,28.90657648,173.88,173.83,28.90657648]
[1729755702943,5.7495,173.93,173.78,2.43546018]
[1729755702944,28.90657648,173.87,173.82,28.90657648]
[1729755703128,28.90657648,173.87,173.83,2.30247197]
[1729755703332,28.90657648,173.88,173.83,31.20904845]
[1729755703521,28.90657648,173.88,173.83,28.90657648]
[1729755704445,28.90657648,173.89,173.84,28.90657648]
[1729755705326,28.90657648,173.89,173.83,28.90657648]
[1729755709343,28.90657648,173.88,173.83,28.90657648]
[1729755709546,28.90657648,173.87,173.82,28.90657648]
[1729755710649,28.90657648,173.87,173.81,28.90657648]
[1729755711155,28.90657648,173.85,173.76,20.0]
[1729755711443,28.90657648,173.85,173.8,28.90657648]
[1729755712238,20.2248,173.92,173.81,28.90657648]
[1729755712239,28.90657648,173.86,173.81,28.90657648]
[1729755715741,5.7514,173.87,173.8,28.90657648]
[1729755715742,28.90657648,173.85,173.8,28.90657648]
[1729755717157,28.90657648,173.83,173.76,20.0]
[1729755717341,28.90657648,173.83,173.78,28.90657648]
[1729755717646,28.90657648,173.83,173.79,2.30291127]
[1729755717844,28.90657648,173.81,173.79,2.30291127]
[1729755718027,28.90657648,173.81,173.64,70.0]
[1729755718028,28.90657648,173.8,173.74,31.20948775]
[1729755718231,28.90657648,173.77,173.75,2.30291127]
[1729755718435,28.90657648,173.77,173.73,2.30291127]
[1729755718753,28.90657648,173.81,173.76,28.90657648]
[1729755718965,28.90657648,173.81,173.77,28.90657648]
[1729755720558,28.90657648,173.81,173.76,28.90657648]
[1729755721344,5.7527,173.84,173.78,28.90657648]
[1729755721541,28.90657648,173.86,173.81,28.90657648]
[1729755721742,28.90657648,173.84,173.79,28.90657648]
[1729755721951,28.90657648,173.84,173.8,2.3029261]
[1729755722265,28.90657648,173.83,173.8,2.3029261]
[1729755722567,28.90657648,173.83,173.79,2.30295759]
[1729755723255,28.90657648,173.83,173.79,16.75624583]
[1729755723456,28.90657648,173.84,173.79,28.90657648]
[1729755724256,28.90657648,173.83,173.78,28.90657648]
[1729755724449,28.90657648,173.83,173.79,2.3030198]
[1729755724845,28.90657648,173.82,173.79,2.3030198]
[1729755725045,28.90657648,173.82,173.78,2.3030198]
[1729755725459,5.7522,173.85,173.78,2.3030198]
[1729755725661,28.90657648,173.82,173.77,28.90657648]
[1729755725851,28.90657648,173.82,173.78,2.30312794]
[1729755726057,28.90657648,173.82,173.77,28.90657648]
[1729755726575,28.90657648,173.82,173.78,31.20981993]
[1729755726765,28.90657648,173.82,173.78,28.90657648]
[1729755727444,5.7522,173.85,173.78,28.90657648]
[1729755727645,28.90657648,173.82,173.78,28.90657648]
[1729755729559,28.90657648,173.8,173.76,28.90657648]
[1729755729765,28.90657648,173.78,173.77,2.30328734]
[1729755729949,28.90657648,173.78,173.74,2.30328734]
[1729755730141,28.90657648,173.78,173.75,2.30328734]
[1729755730348,28.90657648,173.78,173.76,2.30328734]
[1729755730550,28.90657648,173.79,173.77,2.30328734]
[1729755730749,28.90657648,173.79,173.75,2.30328734]
[1729755731454,28.90657648,173.79,173.76,2.30328734]
[1729755731658,28.90657648,173.79,173.75,2.30328734]
[1729755731859,28.90657648,173.79,173.76,2.30328734]
[1729755732267,28.90657648,173.8,173.77,2.30328734]
[1729755732445,28.90657648,173.8,173.76,2.30328734]
[1729755732646,28.90657648,173.8,173.77,2.30328734]
[1729755732847,28.90657648,173.8,173.76,2.30328734]
[1729755733057,28.90657648,173.8,173.77,2.30328734]
[1729755733243,28.90657648,173.79,173.76,2.30328734]
[1729755733643,28.90657648,173.78,173.75,2.30328734]
[1729755733862,28.90657648,173.78,173.69,2.36272282]
[1729755733863,28.90657648,173.78,173.73,28.90657648]
[1729755734092,28.90657648,173.79,173.74,31.20986382]
[1729755734240,28.90657648,173.79,173.75,2.30328734]
[1729755734447,28.90657648,173.78,173.75,2.30328734]
[1729755734748,28.90657648,173.78,173.74,2.30328734]
[1729755734960,28.90657648,173.78,173.75,2.30328734]
[1729755735150,28.90657648,173.78,173.74,2.30328734]
[1729755735350,28.90657648,173.78,173.75,2.30328734]
[1729755735559,28.90657648,173.78,173.74,2.30328734]
[1729755735774,28.90657648,173.78,173.75,2.30328734]
[1729755736057,28.90657648,173.78,173.74,2.30328734]
[1729755736268,28.90657648,173.78,173.75,2.30328734]
[1729755736467,28.90657648,173.78,173.74,2.30328734]
[1729755736773,28.90657648,173.78,173.75,2.30328734]
[1729755736974,28.90657648,173.78,173.74,2.30328734]
[1729755737271,28.90657648,173.78,173.67,0.1]
[1729755737272,28.90657648,173.76,173.75,2.30328734]
[1729755737458,28.90657648,173.76,173.72,2.30328734]
[1729755737649,28.90657648,173.75,173.73,2.30328734]
[1729755737844,28.90657648,173.75,173.74,2.30328734]
[1729755738173,28.90657648,173.76,173.71,2.30328734]
[1729755738357,28.90657648,173.76,173.72,2.30328734]
[1729755738560,28.90657648,173.77,173.73,2.30328734]
[1729755738869,28.90657648,173.77,173.74,2.30328734]
[1729755739169,28.90657648,173.77,173.73,2.30328734]
[1729755739371,28.90657648,173.77,173.74,2.30328734]
[1729755739575,28.90657648,173.77,173.73,2.30328734]
[1729755739754,28.90657648,173.76,173.74,2.30328734]
[1729755739956,28.90657648,173.76,173.72,2.30328734]
[1729755740280,28.90657648,173.75,173.73,2.30373764]
[1729755740446,28.90657648,173.75,173.71,2.30373764]
[1729755740649,28.90657648,173.75,173.72,2.30373764]
[1729755740852,28.90657648,173.75,173.71,2.30373764]
[1729755741049,28.90657648,173.75,173.72,2.30373764]
[1729755741252,28.90657648,173.75,173.71,2.30373764]
[1729755741461,28.90657648,173.75,173.72,2.30373764]
[1729755741669,28.90657648,173.75,173.71,2.30373764]
[1729755741973,28.90657648,173.75,173.72,2.30373764]
[1729755742159,28.90657648,173.75,173.71,2.30373764]
[1729755742472,28.90657648,173.75,173.72,2.30373764]
[1729755742675,28.90657648,173.74,173.71,2.30373764]
[1729755742849,28.90657648,173.74,173.72,2.30373764]
[1729755743049,28.90657648,173.74,173.7,2.30373764]
[1729755743250,28.90657648,173.75,173.7,31.21031412]
[1729755743561,28.90657648,173.75,173.71,2.30373764]
[1729755743961,28.90657648,173.75,173.7,28.90657648]
[1729755744151,28.90657648,173.75,173.71,2.3040116]
[1729755745347,5.7551,173.76,173.71,2.3040116]
[1729755745348,34.66167648,173.76,173.71,2.3040116]
[1729755745858,34.66167648,173.76,173.71,31.21058808]
[1729755746064,34.66167648,173.76,173.71,28.90657648]
[1729755746274,24.27638972,173.76,173.71,18.52128972]
[1729755747279,18.52128972,173.74,173.7,2.30399313]
[1729755747479,18.52128972,173.74,173.69,18.52128972]
[1729755747772,5.7551,173.76,173.71,18.52128972]
[1729755748079,18.52128972,173.75,173.7,18.52128972]
[1729755748381,5.7551,173.76,173.7,18.52128972]
[1729755748678,18.52128972,173.76,173.71,18.52128972]
[1729755749052,24.027864,173.79,173.71,18.52128972]
[1729755749293,18.52128972,173.76,173.71,18.52128972]
[1729755750972,0.25098,173.79,173.72,18.52128972]
[1729755751168,0.25098,173.79,173.73,18.52128972]
[1729755751169,18.52128972,173.78,173.73,18.52128972]
[1729755751673,18.52128972,173.77,173.72,18.52128972]
[1729755756287,18.52128972,173.76,173.71,20.82509023]
[1729755756493,18.52128972,173.76,173.71,18.52128972]
[1729755757574,18.52128972,173.76,173.71,20.82511552]
[1729755757868,18.52128972,173.79,173.74,18.52128972]
[1729755758288,18.52128972,173.77,173.69,2.30372218]
[1729755758594,18.52128972,173.77,173.72,18.52128972]
[1729755759284,18.52128972,173.77,173.72,20.8250119]
[1729755759597,18.52128972,173.77,173.72,18.52128972]
[1729755762470,18.52128972,173.77,173.72,20.82500539]
[1729755762686,18.52128972,173.77,173.72,18.52128972]
[1729755763678,18.52128972,173.77,173.72,20.82501342]
[1729755763992,18.52128972,173.75,173.65,2.34777695]
[1729755764166,18.52128972,173.75,173.62,6.00859206]
[1729755764167,18.52128972,173.68,173.63,2.30371663]
[1729755764369,18.52128972,173.68,173.62,6.00859206]
[1729755764370,18.52128972,173.67,173.62,20.82500635]
[1729755764590,18.52128972,173.67,173.62,18.52128972]
[1729755765391,18.52128972,173.68,173.62,18.52128972]
[1729755767267,18.52128972,173.68,173.63,18.52128972]
[1729755767489,5.7572,173.7,173.63,18.52128972]
[1729755767490,18.52128972,173.69,173.63,18.52128972]
[1729755769590,5.88169,173.73,173.66,18.52128972]
[1729755769781,18.52128972,173.71,173.66,18.52128972]
[1729755770097,18.52128972,173.72,173.67,18.52128972]
[1729755770397,18.77226972,173.73,173.68,18.52128972]
[1729755770879,18.52128972,173.72,173.67,18.52128972]
[1729755771627,18.52128972,173.71,173.66,18.52128972]
[1729755771792,18.52128972,173.7,173.65,18.52128972]
[1729755772705,6.00708,173.73,173.57,8.7856814]
[1729755772706,18.52128972,173.68,173.57,8.7856814]
[1729755772996,18.52128972,173.67,173.62,18.52128972]
[1729755773693,18.52128972,173.67,173.57,6.4033]
[1729755773907,18.52128972,173.67,173.62,18.52128972]
[1729755774495,18.52128972,173.67,173.53,6.11178811]
[1729755774496,18.52128972,173.64,173.53,6.11178811]
[1729755774693,18.52128972,173.64,173.58,18.52128972]
[1729755774907,18.52128972,173.63,173.58,18.52128972]
[1729755775591,5.7581,173.67,173.6,18.52128972]
[1729755775904,18.52128972,173.66,173.61,18.52128972]
[1729755776195,18.52128972,173.67,173.62,18.52128972]
[1729755777399,18.52128972,173.69,173.64,18.52128972]
[1729755778882,18.52128972,173.68,173.63,18.52128972]
[1729755785702,5.7577,173.68,173.64,18.52128972]
[1729755789011,18.52128972,173.67,173.61,18.52128972]
[1729755789997,24.27958972,173.67,173.61,18.52128972]
[1729755792395,5.7577,173.68,173.64,18.52128972]
[1729755793412,24.27898972,173.68,173.63,18.52128972]
[1729755794417,18.52128972,173.66,173.56,20.0]
[1729755794618,18.52128972,173.64,173.54,0.61255101]
[1729755794915,18.52128972,173.64,173.58,18.52128972]
[1729755795093,18.52128972,173.64,173.59,18.52128972]
[1729755795612,18.52128972,173.62,173.58,9.26064486]
[1729755795819,18.52128972,173.61,173.52,6.4033]
[1729755795997,18.52128972,173.62,173.57,18.52128972]
[1729755797311,24.28098972,173.62,173.57,18.52128972]
[1729755803527,18.52128972,173.61,173.56,18.52128972]
[1729755803820,18.52128972,173.6,173.55,18.52128972]
[1729755804129,18.52128972,173.59,173.54,18.52128972]
[1729755804825,18.52128972,173.57,173.52,18.52128972]
[1729755805334,5.7597,173.62,173.48,6.4821]
[1729755805335,18.52128972,173.58,173.53,18.52128972]
[1729755806518,24.28238972,173.58,173.53,18.52128972]
[1729755807017,24.28238972,173.58,173.49,20.0]
[1729755807018,18.52128972,173.56,173.49,20.0]
[1729755807199,5.7611,173.58,173.51,18.52128972]
[1729755807200,18.52128972,173.55,173.51,18.52128972]
[1729755807402,18.52128972,173.56,173.51,18.52128972]
[1729755809215,24.28288972,173.57,173.51,18.52128972]
[1729755812424,18.52128972,173.56,173.51,18.52128972]
[1729755813216,24.28298972,173.56,173.51,18.52128972]
[1729755814329,18.52128972,173.55,173.5,18.52128972]
[1729755815417,5.7623,173.54,173.5,18.52128972]
[1729755817731,18.52128972,173.53,173.46,20.0]
[1729755817938,18.52128972,173.51,173.44,20.0]
[1729755818109,18.52128972,173.51,173.46,18.52128972]
[1729755818633,18.52128972,173.51,173.43,7.0892155]
[1729755818840,18.52128972,173.51,173.46,18.52128972]
[1729755821712,24.28468972,173.51,173.46,18.52128972]
[1729755821930,24.28468972,173.51,173.43,0.6071155]
[1729755822240,24.28468972,173.51,173.46,18.52128972]
[1729755822536,6.628,173.55,173.47,18.52128972]
[1729755822737,6.01328,173.54,173.49,18.52128972]
[1729755823041,18.52128972,173.53,173.48,18.52128972]
[1729755824236,24.28418972,173.53,173.48,18.52128972]
[1729755825438,24.28418972,173.53,173.43,0.6071155]
[1729755825439,5.7621,173.55,173.51,18.52128972]
[1729755826025,35.13148972,173.56,173.51,18.52128972]
[1729755826226,24.28278972,173.57,173.52,18.52128972]
[1729755826533,18.52128972,173.55,173.45,23.776884]
[1729755826727,18.52128972,173.54,173.49,18.52128972]
[1729755828237,24.28358972,173.54,173.49,18.52128972]
[1729755836149,6.6408,173.59,173.52,18.52128972]
[1729755836351,18.52128972,173.57,173.53,18.52128972]
[1729755836847,18.52128972,173.57,173.52,18.52128972]
[1729755839653,18.52128972,173.56,173.52,18.52128972]
[1729755840956,5.7614,173.57,173.5,18.52128972]
[1729755840957,18.52128972,173.55,173.5,18.52128972]
[1729755843758,24.28348972,173.55,173.5,18.52128972]
[1729755844056,18.52128972,173.53,173.48,18.52128972]
[1729755845138,18.52128972,173.53,173.44,0.39700381]
[1729755845139,18.52128972,173.52,173.47,18.52128972]
[1729755846636,18.52128972,173.52,173.46,18.52128972]
[1729755847459,18.52128972,173.52,173.44,0.39700381]
[1729755847460,18.52128972,173.52,173.47,18.52128972]
[1729755847835,18.52128972,173.51,173.46,18.52128972]
[1729755848035,18.52128972,173.49,173.44,18.91829353]
[1729755848237,18.52128972,173.47,173.44,0.39700381]
[1729755848852,18.52128972,173.48,173.44,0.39700381]
[1729755849044,18.52128972,173.48,173.43,19.12840522]
[1729755850162,18.52128972,173.48,173.43,0.6071155]
[1729755850337,18.52128972,173.47,173.43,0.6071155]
[1729755850545,18.52128972,173.45,173.43,0.6071155]
[1729755851367,18.52128972,173.44,173.43,0.6071155]
[1729755853362,24.28688972,173.44,173.43,0.6071155]
[1729755855555,18.52128972,173.44,173.43,0.6071155]
[1729755858355,24.53786972,173.44,173.43,0.6071155]
[1729755859356,44.53786972,173.44,173.43,0.6071155]
[1729755859961,44.027864,173.43,173.34,0.39723285]
[1729755860154,44.027864,173.43,173.35,18.52128972]
[1729755860350,18.52128972,173.4,173.35,18.52128972]
[1729755862062,24.28838972,173.4,173.35,18.52128972]
[1729755862261,18.52128972,173.39,173.29,0.39734746]
[1729755862471,18.52128972,173.39,173.34,18.52128972]
[1729755863375,18.52128972,173.38,173.29,0.39734746]
[1729755863679,18.52128972,173.38,173.33,18.52128972]
[1729755864966,24.28828972,173.4,173.35,18.52128972]
[1729755865173,14.4111,173.48,173.38,18.52128972]
[1729755865370,18.52128972,173.43,173.38,18.52128972]
[1729755871483,20.0,173.44,173.4,18.52128972]
[1729755871702,20.0,173.44,173.41,18.52128972]
[1729755872264,24.28658972,173.46,173.41,18.52128972]
[1729755872265,20.25098,173.45,173.41,18.52128972]
[1729755872878,18.52128972,173.42,173.31,20.1]
[1729755873087,18.52128972,173.41,173.35,18.52128972]
[1729755873970,18.52128972,173.41,173.36,18.52128972]
[1729755874785,18.52128972,173.42,173.37,18.52128972]
[1729755879290,24.41277972,173.43,173.37,18.52128972]
[1729755881877,18.64677972,173.42,173.31,20.1]
[1729755882081,18.64677972,173.42,173.37,18.52128972]
[1729755883791,0.12549,173.42,173.37,18.52128972]
[1729755884496,18.64677972,173.42,173.37,18.52128972]
[1729755886996,5.7643,173.48,173.4,18.52128972]
[1729755887174,5.7643,173.48,173.29,22.72697658]
[1729755887175,18.52128972,173.43,173.29,22.72697658]
[1729755887379,18.52128972,173.43,173.38,18.52128972]
[1729755887580,20.0,173.43,173.38,18.52128972]
[1729755888605,6.01698,173.43,173.38,18.52128972]
[1729755888798,24.53826972,173.43,173.31,20.0]
[1729755889102,24.53826972,173.43,173.37,18.52128972]
[1729755890197,18.52128972,173.42,173.37,18.52128972]
[1729755890384,0.25098,173.41,173.37,18.52128972]
[1729755890783,0.25098,173.41,173.38,0.25606387]
[1729755890985,0.25098,173.41,173.37,18.52128972]
[1729755895982,0.25098,173.41,173.3,74.41441998]
[1729755896183,20.0,173.43,173.38,18.52128972]
[1729755896392,0.1,173.48,173.31,20.0]
[1729755896393,6.6408,173.49,173.41,18.52128972]
[1729755896589,18.52128972,173.47,173.41,18.52128972]
[1729755897403,18.52128972,173.46,173.41,18.52128972]
[1729755898012,24.28628972,173.46,173.41,18.52128972]
[1729755898400,0.25098,173.45,173.41,18.52128972]
[1729755900491,20.0,173.47,173.41,18.52128972]
[1729755900695,20.0,173.47,173.43,18.52128972]
[1729755900900,38.52128972,173.47,173.42,18.52128972]
[1729755901119,18.52128972,173.45,173.35,6.3515]
[1729755901418,18.52128972,173.45,173.39,18.52128972]
[1729755901784,18.52128972,173.45,173.4,18.52128972]
[1729755902388,5.7653,173.45,173.4,18.52128972]
[1729755902592,5.7653,173.45,173.41,18.52128972]
[1729755903312,5.7653,173.45,173.4,18.52128972]
[1729755905112,24.28658972,173.45,173.39,18.52128972]
[1729755907090,24.28658972,173.45,173.4,18.52128972]
[1729755910697,0.25098,173.45,173.4,18.52128972]
[1729755912718,24.53756972,173.45,173.4,18.52128972]
[1729755914316,44.28628972,173.47,173.41,18.52128972]
[1729755914622,0.25098,173.46,173.41,18.52128972]
[1729755915128,18.77226972,173.46,173.41,18.52128972]
[1729755915700,18.77226972,173.46,173.36,20.0]
[1729755915899,18.77226972,173.46,173.41,18.52128972]
[1729755917602,24.53736972,173.46,173.41,18.52128972]
[1729755918001,24.53736972,173.46,173.4,18.52128972]
[1729755918510,18.52128972,173.45,173.4,18.52128972]
[1729755919126,18.52128972,173.45,173.36,20.0]
[1729755919321,18.52128972,173.43,173.38,18.52128972]
[1729755919623,18.52128972,173.42,173.32,23.776884]
[1729755919806,18.52128972,173.42,173.37,18.52128972]
[1729755920220,18.52128972,173.41,173.32,23.776884]
[1729755920526,18.52128972,173.41,173.35,18.52128972]
[1729755920825,18.52128972,173.4,173.35,18.52128972]
[1729755921031,18.52128972,173.39,173.34,18.52128972]
[1729755921204,18.52128972,173.38,173.32,20.0]
[1729755921405,18.52128972,173.37,173.32,18.52128972]
[1729755921630,18.52128972,173.37,173.31,6.4658]
[1729755921631,18.52128972,173.36,173.28,16.2233]
[1729755921808,6.3602,173.4,173.3,18.52128972]
[1729755921809,18.52128972,173.35,173.3,18.52128972]
[1729755922219,18.52128972,173.35,173.28,16.2233]
[1729755922419,18.52128972,173.35,173.3,18.52128972]
[1729755922728,18.52128972,173.36,173.31,18.52128972]
[1729755922911,18.52128972,173.38,173.33,18.52128972]
[1729755923821,18.52128972,173.37,173.29,20.0]
[1729755924019,18.52128972,173.37,173.32,18.52128972]
[1729755926726,6.3602,173.4,173.29,20.0]
[1729755926727,24.88148972,173.4,173.34,18.52128972]
[1729755927532,18.52128972,173.39,173.34,18.52128972]
[1729755928129,18.52128972,173.39,173.29,20.0]
[1729755928422,18.52128972,173.39,173.33,18.52128972]
[1729755929833,24.28798972,173.41,173.36,18.52128972]
[1729755930130,0.25098,173.41,173.37,18.52128972]
[1729755930836,18.77226972,173.41,173.36,18.52128972]
[1729755931311,24.53896972,173.41,173.36,18.52128972]
[1729755931832,24.53896972,173.41,173.3,74.08515888]
[1729755932127,24.53896972,173.41,173.36,18.52128972]
[1729755932429,6.01768,173.41,173.36,18.52128972]
[1729755933221,6.01768,173.41,173.37,18.52128972]
[1729755933916,38.52128972,173.38,173.31,0.20964991]
[1729755934110,18.52128972,173.37,173.31,0.20964991]
[1729755934311,18.52128972,173.37,173.32,18.52128972]
[1729755934835,38.52128972,173.38,173.33,18.52128972]
[1729755935010,6.01758,173.41,173.36,18.52128972]
[1729755936932,20.0,173.41,173.37,18.52128972]
[1729755937436,20.0,173.41,173.36,18.52128972]
[1729755937939,25.7667,173.41,173.36,18.52128972]
[1729755938736,44.28798972,173.41,173.36,18.52128972]
[1729755940239,18.52128972,173.4,173.29,44.027864]
[1729755940547,18.52128972,173.4,173.35,18.52128972]
[1729755941721,24.28838972,173.4,173.35,18.52128972]
[1729755944026,24.28838972,173.4,173.3,74.08515888]
[1729755944250,24.28838972,173.4,173.35,18.52128972]
[1729755956145,24.28838972,173.4,173.36,18.52128972]
[1729755956344,5.7671,173.4,173.36,18.52128972]
[1729755960644,15.3089,173.47,173.39,18.52128972]
[1729755960848,15.3089,173.47,173.42,18.52128972]
[1729755960849,10.07576927,173.46,173.42,18.52128972]
[1729755961151,5.765,173.46,173.42,18.52128972]
[1729755961364,4.31206564,173.45,173.42,18.52128972]
[1729755961539,5.765,173.46,173.42,18.52128972]
[1729755961858,5.7656,173.45,173.42,18.52128972]
[1729755962251,18.52128972,173.43,173.37,18.52128972]
[1729755962457,18.52128972,173.4,173.35,18.52128972]
[1729755963559,5.767,173.4,173.36,18.52128972]
[1729755965960,18.77226972,173.44,173.39,18.52128972]
[1729755966263,20.0,173.42,173.38,18.52128972]
[1729755966467,4.3187465,173.41,173.38,18.52128972]
[1729755967867,25.7665,173.42,173.38,18.52128972]
[1729755968046,25.7665,173.42,173.37,18.52128972]
[1729755968248,4.32155658,173.41,173.37,18.52128972]
[1729755968453,25.7665,173.42,173.37,18.52128972]
[1729755968638,4.32156269,173.41,173.37,18.52128972]
[1729755968844,25.7665,173.42,173.37,18.52128972]
[1729755969467,44.28778972,173.42,173.37,18.52128972]
[1729755972467,18.52128972,173.41,173.32,43.776884]
[1729755972652,18.52128972,173.41,173.36,18.52128972]
[1729755973566,24.28788972,173.41,173.36,18.52128972]
[1729755973771,24.28788972,173.41,173.32,20.0]
[1729755973950,24.28788972,173.41,173.36,18.52128972]
[1729755974669,18.52128972,173.4,173.32,20.0]
[1729755974869,18.52128972,173.4,173.35,18.52128972]
[1729755975249,18.52128972,173.39,173.34,18.52128972]
[1729755975470,24.28878972,173.39,173.29,23.776884]
[1729755975765,18.52128972,173.38,173.33,18.52128972]
[1729755975967,24.28878972,173.39,173.33,18.52128972]
[1729755976467,24.28878972,173.39,173.29,23.776884]
[1729755976667,24.28878972,173.39,173.33,18.52128972]
[1729755977056,6.3664,173.41,173.34,18.52128972]
[1729755977353,24.31710315,173.4,173.36,18.52128972]
[1729755977562,20.12549,173.42,173.38,18.52128972]
[1729755977761,4.31743368,173.41,173.38,18.52128972]
[1729755978074,20.0,173.42,173.38,18.52128972]
[1729755978279,4.3174613,173.41,173.38,18.52128972]
[1729755978568,20.0,173.42,173.38,18.52128972]
[1729755978771,4.3174032,173.41,173.38,18.52128972]
[1729755978947,25.7664,173.42,173.38,19.51128972]
[1729755979150,4.31744919,173.41,173.38,19.51128972]
[1729755979364,44.28768972,173.42,173.38,0.99]
[1729755979565,4.31751439,173.41,173.38,0.99]
[1729755979772,44.28768972,173.42,173.38,0.99]
[1729755979970,4.31836152,173.41,173.38,0.99]
[1729755980174,44.28768972,173.42,173.38,0.99]
[1729755980345,4.31841408,173.41,173.38,0.99]
[1729755980545,44.28768972,173.42,173.38,0.99]
[1729755980758,4.31845283,173.41,173.38,0.99]
[1729755981071,44.28768972,173.42,173.38,0.99]
[1729755981270,6.3664,173.45,173.38,0.99]
[1729755981472,11.22643845,173.44,173.4,18.52128972]
[1729755981655,0.12549,173.42,173.4,0.99]
[1729755981861,18.64677972,173.42,173.4,0.99]
[1729755982572,26.5451,173.45,173.4,0.99]
[1729755982573,20.0,173.44,173.4,0.99]
[1729755982872,4.3201515,173.43,173.4,0.99]
[1729755983168,18.52128972,173.43,173.4,0.99]
[1729755983358,24.28748972,173.43,173.4,0.99]
[1729755984152,20.0,173.44,173.4,0.99]
[1729755984360,25.7657,173.44,173.4,19.51128972]
[1729755984967,4.32064239,173.43,173.4,19.51128972]
[1729755985550,25.7657,173.44,173.4,19.51128972]
[1729755987459,44.28698972,173.44,173.4,0.99]
[1729755988081,18.52128972,173.41,173.4,0.99]
[1729755988287,18.64677972,173.41,173.4,0.86302415]
[1729755988967,20.12549,173.4,173.36,0.2579121]
[1729755989171,18.52128972,173.38,173.37,2.12]
[1729755989374,18.64677972,173.38,173.37,2.12]
[1729755990261,24.41437972,173.38,173.37,2.12]
[1729755990882,24.41437972,173.38,173.36,0.2579121]
[1729755991085,18.52128972,173.37,173.36,0.2579121]
[1729755991254,24.28928972,173.37,173.36,0.2579121]
[1729755993566,24.28928972,173.37,173.36,2.3779121]
[1729755993767,5.768,173.37,173.36,2.3779121]
[1729755998490,18.64677972,173.38,173.36,2.3779121]
[1729755998790,24.41447972,173.38,173.36,2.3779121]
[1729755999681,5.7674,173.39,173.36,2.3779121]
[1729756002080,24.28868972,173.39,173.36,2.3779121]
[1729756011399,18.64677972,173.38,173.36,2.3779121]
[1729756012697,59.43418972,173.4,173.36,2.3779121]
[1729756013078,18.52128972,173.39,173.36,2.3779121]
[1729756013696,40.9129,173.4,173.36,2.3779121]
[1729756013897,59.43418972,173.4,173.36,2.3779121]
[1729756014405,44.28828972,173.4,173.36,2.3779121]
[1729756014786,44.28828972,173.4,173.36,0.2579121]
[1729756015804,24.28858972,173.39,173.36,1.3579121]
[1729756016495,5.7673,173.39,173.36,1.3579121]
[1729756018081,20.0,173.38,173.36,1.3579121]
[1729756018289,62.54915372,173.37,173.36,0.2579121]
[1729756018598,66.86691397,173.37,173.36,0.2579121]
[1729756019202,62.54915372,173.37,173.36,0.2579121]
[1729756019381,66.86669257,173.37,173.36,0.2579121]
[1729756019577,72.63469257,173.37,173.36,0.2579121]
[1729756021605,68.31715372,173.37,173.36,0.2579121]
[1729756021829,72.63221939,173.37,173.36,0.2579121]
[1729756022496,79.73411276,173.37,173.36,0.2579121]
[1729756022685,87.46098253,173.37,173.36,0.2579121]
[1729756023412,87.46098253,173.37,173.26,2.07]
[1729756023413,51.75473377,173.36,173.26,2.07]
[1729756023599,18.52128972,173.29,173.26,2.07]
[1729756024283,18.52128972,173.28,173.26,2.07]
[1729756024490,24.29248972,173.28,173.22,18.73104856]
[1729756024809,24.29248972,173.28,173.23,2.07]
[1729756025497,24.29248972,173.28,173.23,20.59128972]
[1729756027916,18.52128972,173.31,173.25,18.52128972]
[1729756028207,38.77226972,173.3,173.25,18.52128972]
[1729756028409,18.52128972,173.29,173.23,2.07]